bitfinex/quotes_ETHUSD_20220219
["timestamp","ask_amount","ask_price","bid_price","bid_amount"]
[1645259832237,0.00109462,2809.5,2809.0,0.513]
[1645259832439,1.51109325,2809.9,2809.0,0.513]
[1645259832637,0.00109462,2809.4,2809.0,0.513]
[1645259833085,0.00109462,2809.4,2809.1,1.11446566]
[1645259833489,1.51109325,2809.7,2809.1,1.11446566]
[1645259833686,3.5,2810.0,2809.1,1.11446566]
[1645259833887,0.00231227,2809.4,2809.1,11.96446566]
[1645259834285,0.00231227,2809.4,2809.1,1.11446566]
[1645259834888,5.01108932,2810.0,2809.1,1.11446566]
[1645259835092,0.00219047,2809.4,2809.1,1.11446566]
[1645259837234,4.34139867,2810.2,2809.1,1.11446566]
[1645259837235,3.5,2810.2,2809.1,1.11446566]
[1645259837436,0.00219047,2809.4,2809.1,1.11446566]
[1645259838441,0.90372939,2810.0,2809.1,1.11446566]
[1645259838639,0.0010934,2809.4,2809.1,1.11446566]
[1645259839037,0.0010934,2809.4,2809.1,11.96446566]
[1645259839644,1.51106835,2810.1,2809.1,11.96446566]
[1645259839645,1.3828,2810.3,2810.0,1.05793464]
[1645259839840,1.51101543,2810.2,2809.2,0.513]
[1645259840239,1.2049,2810.3,2809.2,0.513]
[1645259841085,0.0010934,2809.9,2809.7,0.86540927]
[1645259842084,1.51097066,2810.3,2809.7,0.86540927]
[1645259842289,0.0022419,2809.9,2809.7,0.86540927]
[1645259842484,0.0022419,2809.9,2809.2,0.513]
[1645259843289,1.51099235,2810.3,2809.2,0.513]
[1645259843489,0.00102031,2809.7,2809.2,0.513]
[1645259843691,0.00102031,2809.7,2809.6,0.94838648]
[1645259844342,1.51099235,2810.3,2809.6,0.94838648]
[1645259844741,0.00102031,2809.8,2809.6,0.94838648]
[1645259845341,0.00102031,2809.8,2809.2,0.513]
[1645259845540,0.86499968,2810.1,2809.2,0.513]
[1645259845840,0.00102031,2809.6,2809.2,0.513]
[1645259846740,1.51104939,2810.1,2809.2,0.513]
[1645259847142,0.00224993,2809.5,2809.2,0.513]
[1645259847344,0.00224993,2809.5,2809.4,0.87548661]
[1645259848196,0.7363396,2809.3,2809.2,0.513]
[1645259848395,0.7363396,2809.3,2809.2,1.61005926]
[1645259856290,0.7363396,2809.3,2809.2,1.09705926]
[1645259856889,0.7363396,2809.3,2809.2,1.13352968]
[1645259861442,0.7363396,2809.3,2809.2,1.09705926]
[1645259864795,2.24744584,2809.3,2809.2,1.09705926]
[1645259865997,0.7363396,2809.3,2809.1,0.513]
[1645259866200,0.7363396,2809.3,2808.5,11.66006417]
[1645259866201,0.7363396,2809.3,2807.9,0.25]
[1645259866202,9.8905412,2809.0,2807.9,0.25]
[1645259866400,5.01235895,2808.0,2807.3,1.0]
[1645259866600,5.01235895,2808.0,2806.9,0.00214562]
[1645259866601,5.0,2807.6,2806.9,0.00214562]
[1645259866870,5.0,2807.6,2806.3,0.00858425]
[1645259866871,5.0,2807.0,2806.3,0.00858425]
[1645259867055,5.0,2807.0,2806.3,8.425e-05]
[1645259867056,1.01076147,2806.7,2806.3,8.425e-05]
[1645259867251,2.29589,2806.6,2806.3,8.425e-05]
[1645259867452,1.0,2806.4,2805.9,0.2668]
[1645259867652,0.513,2806.3,2805.9,0.2668]
[1645259867851,1.0,2806.0,2805.9,0.2668]
[1645259870698,1.5909,2806.7,2806.0,10.85]
[1645259870908,0.00216121,2806.8,2806.2,10.85]
[1645259871094,0.39,2807.1,2806.2,10.85]
[1645259871296,0.00216135,2806.8,2806.2,10.85216186]
[1645259871794,0.00216135,2806.8,2806.3,11.81230925]
[1645259872197,0.39,2807.1,2806.3,11.81230925]
[1645259872695,0.00215012,2806.8,2806.3,0.96230925]
[1645259873503,0.85054439,2807.0,2806.3,0.96230925]
[1645259873694,0.00215012,2806.8,2806.3,11.76230925]
[1645259874548,0.39,2807.1,2806.3,11.76230925]
[1645259874847,0.00215012,2806.8,2806.3,0.91230925]
[1645259875046,0.00215012,2806.8,2806.3,11.76230925]
[1645259875853,0.39,2807.1,2806.3,11.66230925]
[1645259876056,0.00215012,2806.8,2806.3,11.66230925]
[1645259876452,0.00215012,2806.8,2806.3,0.81230925]
[1645259877051,0.39,2807.1,2806.3,0.81230925]
[1645259877251,0.00215175,2806.8,2806.3,0.81230925]
[1645259878303,4.41691316,2807.2,2806.3,0.81230925]
[1645259878506,0.00215175,2806.8,2806.3,0.71230925]
[1645259879508,6.19889316,2807.2,2806.3,0.71230925]
[1645259879705,0.00215175,2806.8,2806.3,0.71230925]
[1645259880708,0.8910348,2807.0,2806.3,0.71230925]
[1645259880905,0.00215152,2806.8,2806.3,0.71230925]
[1645259881511,0.00215152,2806.8,2806.5,0.02890392]
[1645259881945,1.7820848,2807.0,2806.5,0.02890392]
[1645259882244,0.00215155,2806.8,2806.5,0.02890392]
[1645259883045,1.7820848,2807.0,2806.5,0.02890392]
[1645259883245,0.00215155,2806.8,2806.5,0.02890392]
[1645259884247,7.08984936,2807.2,2806.5,0.02890392]
[1645259884548,0.00215158,2806.8,2806.5,0.02890392]
[1645259885455,1.7820701,2807.0,2806.5,0.02890392]
[1645259885712,0.00215158,2806.8,2806.5,0.02890392]
[1645259886503,0.00215158,2806.8,2806.7,0.02790736]
[1645259886698,1.7820701,2807.0,2806.7,0.02790736]
[1645259886895,0.00215158,2806.8,2806.7,0.02790736]
[1645259887896,0.05581472,2806.6,2806.3,0.01451101]
[1645259891550,0.05581472,2806.6,2806.2,10.85]
[1645259891757,0.05581472,2806.6,2806.2,10.85215202]
[1645259892551,0.05581472,2806.6,2806.2,10.85]
[1645259892952,0.05581472,2806.6,2806.2,0.00215201]
[1645259893799,0.05581472,2806.6,2806.1,12.68874093]
[1645259894000,0.05581472,2806.6,2806.2,0.00215201]
[1645259895101,0.05581472,2806.6,2806.1,12.98874093]
[1645259895301,0.05581472,2806.6,2806.2,0.00215201]
[1645259896303,0.05581472,2806.6,2806.1,12.98874093]
[1645259896503,0.05581472,2806.6,2806.2,0.00215201]
[1645259897250,0.05581472,2806.6,2806.2,11.36515201]
[1645259897451,0.05581472,2806.6,2806.2,11.363]
[1645259897653,0.05581472,2806.6,2806.2,11.36515201]
[1645259898652,0.05581472,2806.6,2806.2,11.363]
[1645259898953,0.05581472,2806.6,2806.2,11.36515201]
[1645259899353,0.05581472,2806.6,2806.2,0.51515201]
[1645259899853,0.05581472,2806.6,2806.2,0.513]
[1645259900053,0.05581472,2806.6,2806.2,0.51495461]
[1645259901101,0.05581472,2806.6,2806.2,0.513]
[1645259901295,0.05581472,2806.6,2806.2,0.51495461]
[1645259902296,0.05581472,2806.6,2806.2,0.513]
[1645259902496,0.05581472,2806.6,2806.2,0.5149612]
[1645259903501,0.05581472,2806.6,2806.2,0.513]
[1645259903696,0.05581472,2806.6,2806.2,0.5149612]
[1645259904546,0.05581472,2806.6,2806.2,0.513]
[1645259905048,0.05581472,2806.6,2806.2,0.51497723]
[1645259905847,0.05581472,2806.6,2806.2,0.513]
[1645259906048,0.05581472,2806.6,2806.2,0.51497723]
[1645259906451,0.05581472,2806.6,2806.2,0.65910075]
[1645259906651,0.05581472,2806.6,2806.2,0.83720075]
[1645259907052,0.05581472,2806.6,2806.2,0.83522352]
[1645259907453,0.05581472,2806.6,2806.2,4.44784298]
[1645259907652,0.05581472,2806.6,2806.2,4.74784298]
[1645259907953,0.05581472,2806.6,2806.3,0.172231]
[1645259908208,0.05581472,2806.6,2806.4,0.813]
[1645259908408,0.05581472,2806.6,2806.4,0.94447301]
[1645259908608,0.05581472,2806.6,2806.4,1.113]
[1645259908812,0.00197294,2806.8,2806.5,9.51709565]
[1645259909010,0.00197294,2806.8,2806.6,0.513]
[1645259909211,0.00197294,2806.8,2806.6,0.95331032]
[1645259909410,1.51202048,2807.6,2806.7,10.85]
[1645259909610,1.51202048,2807.6,2806.8,10.85]
[1645259909815,1.51202048,2807.6,2806.8,11.15]
[1645259910111,1.51202048,2807.6,2807.2,1.07719779]
[1645259910511,1.51202048,2807.8,2807.2,1.07719779]
[1645259910909,0.00093607,2807.5,2807.2,1.07719779]
[1645259911311,1.51295655,2807.5,2807.2,1.07719779]
[1645259911509,1.51202048,2807.4,2807.2,1.07719779]
[1645259911709,0.00093607,2807.5,2807.2,1.07719779]
[1645259911945,1.51200335,2807.8,2807.2,1.07719779]
[1645259912147,0.00215411,2807.4,2807.2,1.07719779]
[1645259912746,0.00215411,2807.4,2807.2,12.22719779]
[1645259912957,0.00215411,2807.4,2807.3,11.363]
[1645259913147,1.51182302,2808.0,2807.3,11.363]
[1645259913348,0.00215411,2807.4,2807.3,12.2146]
[1645259913547,0.00215411,2807.4,2807.3,12.8146]
[1645259914348,1.51183815,2808.1,2807.6,10.85]
[1645259914546,1.51183815,2808.1,2807.9,1.05801741]
[1645259914951,3.5,2808.4,2807.9,1.05801741]
[1645259914952,1.51183815,2808.3,2807.9,1.05801741]
[1645259915707,1.51398581,2808.2,2807.9,1.05801741]
[1645259916002,1.51183815,2808.1,2807.9,1.05801741]
[1645259916206,0.00214766,2808.2,2807.9,1.05801741]
[1645259916601,1.5117356,2808.4,2807.9,1.05801741]
[1645259916802,1.5117356,2808.3,2807.9,1.05801741]
[1645259917002,1.51388328,2808.2,2807.9,1.05801741]
[1645259917204,0.00214768,2808.2,2807.9,1.05801741]
[1645259918003,1.51171769,2808.6,2807.9,1.05801741]
[1645259918207,0.00214855,2808.2,2807.9,1.05801741]
[1645259919206,1.51171769,2808.6,2807.9,1.57101741]
[1645259919451,0.00214855,2808.2,2807.9,1.57101741]
[1645259919654,0.00214855,2808.2,2807.9,12.42101741]
[1645259919853,0.00214855,2808.2,2807.9,1.57101741]
[1645259920259,5.91934861,2808.8,2807.9,1.57101741]
[1645259920452,2.66728886,2808.7,2807.9,1.57101741]
[1645259920660,0.00214855,2808.2,2807.9,1.57101741]
[1645259921457,1.5117158,2808.5,2807.9,1.57101741]
[1645259921659,0.00214843,2808.2,2807.9,1.57101741]
[1645259921857,0.00214843,2808.2,2807.9,0.513]
[1645259923903,1.51175461,2808.5,2807.9,0.513]
[1645259924106,0.00214843,2808.2,2807.9,0.513]
[1645259925206,1.51175461,2808.5,2807.9,0.513]
[1645259925409,0.00214845,2808.2,2807.9,0.513]
[1645259926211,1.51175461,2808.5,2807.9,0.513]
[1645259926607,0.00214845,2808.2,2807.9,0.513]
[1645259927447,1.51175461,2808.5,2807.9,0.513]
[1645259927647,0.00214845,2808.2,2807.9,0.513]
[1645259928848,1.51175461,2808.5,2807.9,0.513]
[1645259929047,0.00214845,2808.2,2807.9,0.513]
[1645259929648,0.00214845,2808.2,2807.7,11.87043989]
[1645259931098,1.51175209,2808.3,2807.7,11.87043989]
[1645259931306,0.00208403,2808.1,2807.7,11.87043989]
[1645259932001,0.00208403,2808.1,2807.7,1.02043989]
[1645259932202,3.5,2808.2,2807.7,1.02043989]
[1645259932403,4.3906982,2808.2,2807.7,1.02043989]
[1645259932606,4.3906982,2808.2,2807.4,0.1779]
[1645259932807,1.51187701,2808.1,2807.2,0.52299135]
[1645259933006,1.51187701,2808.1,2807.2,0.82299135]
[1645259933007,3.5,2808.0,2807.2,0.82299135]
[1645259933208,3.5,2808.0,2807.2,1.12299135]
[1645259933802,3.5,2808.0,2807.4,1.18884138]
[1645259934449,4.3907622,2808.0,2807.4,1.70184138]
[1645259935650,1.51195182,2807.9,2807.4,1.70184138]
[1645259937752,6.81011081,2808.0,2807.4,1.70184138]
[1645259937952,3.31011081,2808.0,2807.4,1.70184138]
[1645259938197,1.51192849,2807.9,2807.4,1.70184138]
[1645259938797,5.91934861,2808.2,2807.4,2.00184138]
[1645259938995,1.51186803,2808.1,2807.4,1.70184138]
[1645259940499,1.78370084,2808.3,2807.4,1.70184138]
[1645259940500,1.51186803,2808.0,2807.4,1.70184138]
[1645259940702,5.20064621,2808.5,2807.4,1.70184138]
[1645259940703,3.5,2808.4,2807.4,1.70184138]
[1645259940902,2.5141862,2808.3,2807.4,1.70184138]
[1645259941097,5.01186226,2808.2,2807.4,1.70184138]
[1645259941296,1.51186226,2808.1,2807.4,1.70184138]
[1645259944348,3.5,2808.0,2807.4,1.70184138]
[1645259944549,1.51191867,2807.9,2807.4,1.70184138]
[1645259944949,3.5,2808.2,2807.4,1.70184138]
[1645259945149,1.51189239,2808.1,2807.4,1.70184138]
[1645259945800,1.51189239,2808.0,2807.4,1.70184138]
[1645259945997,1.51189239,2808.1,2807.4,1.70184138]
[1645259946400,3.5,2808.0,2807.4,1.70184138]
[1645259946598,1.51189239,2807.9,2807.4,1.70184138]
[1645259946801,1.51189239,2807.8,2807.4,1.70184138]
[1645259946999,3.5,2808.2,2807.4,1.70184138]
[1645259947200,1.51191252,2808.1,2807.4,1.70184138]
[1645259949105,1.51191252,2808.1,2807.4,1.70027385]
[1645259949351,1.51191252,2808.1,2807.9,1.05638944]
[1645259949548,0.55632317,2807.8,2807.6,1.18605831]
[1645259949746,1.51191252,2807.7,2807.6,1.18605831]
[1645259950146,0.55632317,2807.8,2807.6,1.18605831]
[1645259950947,1.51192558,2807.7,2807.6,1.18605831]
[1645259954023,0.22544124,2807.5,2807.3,1.08647827]
[1645259957148,0.22544124,2807.5,2807.3,1.68647827]
[1645259957544,0.22544124,2807.5,2807.3,1.08647827]
[1645259960799,0.55632317,2807.8,2807.3,1.08647827]
[1645259961000,1.51186185,2807.7,2807.3,1.08647827]
[1645259961498,1.51186185,2807.7,2807.3,1.38647827]
[1645259976500,1.51066157,2807.7,2807.3,1.38647827]
[1645259977905,3.5,2807.6,2807.2,0.513]
[1645259978112,3.5,2807.6,2806.9,0.1779]
[1645259978314,3.5,2807.6,2806.7,0.513]
[1645259979104,3.5,2807.6,2806.9,1.04760654]
[1645259979548,0.89095,2807.5,2806.9,1.04760654]
[1645259980351,1.78193,2807.5,2806.9,1.04760654]
[1645259980552,2.6728718,2807.5,2806.9,1.04760654]
[1645259980750,1.7818918,2807.5,2806.9,1.04760654]
[1645259980951,9.48310821,2807.7,2806.9,1.04760654]
[1645259981753,7.0637596,2807.7,2806.9,1.04760654]
[1645259981953,0.89096,2807.5,2806.9,1.04760654]
[1645259982553,7.95467,2807.7,2806.9,1.04760654]
[1645259983205,11.43700562,2807.7,2806.9,1.04760654]
[1645259983605,12.32789562,2807.7,2806.9,1.04760654]
[1645259983805,11.26490861,2807.7,2806.9,1.04760654]
[1645259984410,2.41934861,2807.6,2806.9,1.04760654]
[1645259984605,3.5,2807.5,2806.9,1.04760654]
[1645259984805,2.41934861,2807.6,2806.9,1.04760654]
[1645259985711,0.55632317,2807.8,2806.9,1.34760654]
[1645259987967,0.55632317,2807.8,2807.4,0.99019703]
[1645259990810,0.55632317,2807.8,2807.1,0.513]
[1645259992007,0.55632317,2807.8,2807.2,1.03555072]
[1645259996555,1.51194217,2807.7,2807.2,1.03555072]
[1645260000600,1.51093226,2807.7,2807.2,1.03555072]
[1645260000799,1.51093226,2807.7,2807.2,1.63555072]
[1645260003077,1.51093226,2807.7,2807.2,12.48555072]
[1645260003476,1.51093226,2807.7,2807.3,0.513]
[1645260007405,1.51093226,2807.7,2807.3,0.813]
[1645260013600,1.51093226,2807.7,2807.3,11.663]
[1645260013803,0.55632317,2807.8,2807.3,11.663]
[1645260014800,0.55632317,2807.8,2807.7,1.1252484]
[1645260015803,0.55632317,2807.8,2807.7,1.7252484]
[1645260016405,0.55632317,2807.8,2807.7,2.2382484]
[1645260016613,0.55632317,2807.8,2807.7,13.0882484]
[1645260016875,2.41934861,2808.2,2807.8,19.85]
[1645260017070,0.00213589,2808.3,2808.0,10.85]
[1645260017273,0.00213589,2808.3,2808.2,10.85]
[1645260017274,3.589e-05,2808.3,2808.2,10.85]
[1645260017472,10.11133569,2809.3,2808.2,10.85]
[1645260017473,3.5,2809.3,2808.3,11.0]
[1645260017670,3.5,2809.3,2808.5,10.85]
[1645260017868,3.5,2809.3,2808.6,0.513]
[1645260018268,3.5,2809.3,2808.7,0.890054]
[1645260018472,3.5,2809.3,2808.8,1.46563808]
[1645260018670,3.5,2809.3,2808.8,3.18973808]
[1645260018869,1.574,2809.5,2808.8,3.18973808]
[1645260019672,1.574,2809.5,2808.8,4.07978808]
[1645260019871,1.574,2809.5,2808.9,0.8900308]
[1645260020073,1.574,2809.5,2809.0,1.047]
[1645260020270,0.00110371,2809.3,2809.0,1.047]
[1645260020721,0.00110371,2809.3,2809.2,0.88996]
[1645260020915,0.00110371,2809.3,2809.2,1.40296]
[1645260021115,1.51104155,2810.1,2809.2,1.40296]
[1645260021314,1.51104155,2810.1,2809.4,0.92197192]
[1645260021514,1.51104155,2810.1,2809.5,0.513]
[1645260021715,0.10402808,2809.4,2809.3,1.42388]
[1645260021920,0.10402808,2809.4,2809.3,0.53396]
[1645260022114,0.10402808,2809.4,2809.2,1.18996]
[1645260022315,0.10402808,2809.4,2809.3,0.513]
[1645260022715,0.10402808,2809.4,2809.3,0.813]
[1645260023117,6.2512789,2810.2,2809.3,0.813]
[1645260023315,1.51104974,2810.1,2809.3,0.813]
[1645260023917,1.51104974,2810.1,2809.3,1.34697]
[1645260024128,1.51104974,2810.1,2809.4,0.3]
[1645260024377,1.51104974,2810.1,2809.5,0.513]
[1645260024673,1.51104974,2810.1,2809.5,0.813]
[1645260025070,0.00231236,2809.9,2809.5,0.813]
[1645260025874,1.51102144,2810.2,2809.5,0.813]
[1645260026271,0.0023124,2809.8,2809.5,0.813]
[1645260027180,1.51102144,2810.2,2809.5,0.513]
[1645260027373,0.00231242,2809.8,2809.5,0.813]
[1645260027575,0.00231242,2809.8,2809.5,0.513]
[1645260028403,1.51105273,2810.0,2809.5,0.513]
[1645260028602,0.00231242,2809.8,2809.5,0.513]
[1645260029601,3.5,2810.1,2809.5,0.513]
[1645260029808,0.00231242,2809.8,2809.5,0.513]
[1645260030202,0.00231242,2809.8,2809.5,0.813]
[1645260030809,1.51105048,2810.2,2809.5,0.813]
[1645260031002,0.00231242,2809.8,2809.5,0.813]
[1645260031958,13.44065379,2810.3,2809.6,0.02719729]
[1645260032158,0.00231242,2809.8,2809.6,0.02719729]
[1645260033160,1.51103304,2810.2,2809.6,0.02719729]
[1645260033361,0.0023124,2809.8,2809.6,0.02719729]
[1645260034461,3.5,2810.1,2809.6,0.02719729]
[1645260034665,0.0023124,2809.8,2809.6,0.02719729]
[1645260036506,0.0023124,2809.8,2809.5,0.84059905]
[1645260036707,12.5257,2810.3,2809.5,0.84059905]
[1645260037108,0.0023124,2809.8,2809.5,0.84059905]
[1645260037810,0.0023124,2809.8,2809.6,1.07501675]
[1645260038013,12.5257,2810.3,2809.6,1.07501675]
[1645260038209,0.00231242,2809.8,2809.6,1.07501675]
[1645260038618,0.00231242,2809.8,2809.5,0.54059905]
[1645260039209,1.51102915,2810.1,2809.5,0.54059905]
[1645260039453,0.00231242,2809.8,2809.5,0.54059905]
[1645260039657,1.12169389,2809.8,2809.5,0.02759905]
[1645260039863,3.5,2809.7,2808.8,0.4279]
[1645260040065,3.5,2809.7,2808.8,0.25]
[1645260040254,3.5,2809.7,2808.6,0.513]
[1645260040654,0.0023126,2809.4,2808.8,1.02080264]
[1645260041558,3.5,2809.7,2808.8,1.02080264]
[1645260041755,4.6697,2809.8,2808.8,1.02080264]
[1645260041956,0.00231266,2809.2,2808.8,1.02080264]
[1645260042755,4.6697,2809.8,2808.8,1.02080264]
[1645260042956,0.0023127,2809.1,2808.8,1.02080264]
[1645260043404,0.0023127,2809.1,2808.8,1.91087264]
[1645260043607,0.0023127,2809.1,2808.9,4.10289946]
[1645260043810,0.0023127,2809.1,2809.0,0.88986]
[1645260044012,1.5109707,2810.1,2809.0,1.70286]
[1645260044206,1.5109707,2810.1,2809.0,1.113]
[1645260044207,0.0023127,2809.1,2809.0,1.113]
[1645260045004,0.0023127,2809.1,2809.0,2.00289]
[1645260045211,1.51096461,2810.0,2809.0,2.00289]
[1645260045404,1.51096461,2810.0,2809.1,0.88999]
[1645260045606,0.00231268,2809.2,2809.1,0.88999]
[1645260046408,3.5,2810.1,2809.2,0.88997]
[1645260046707,0.00231264,2809.3,2809.2,1.18997]
[1645260047661,1.51095382,2810.0,2809.2,1.18997]
[1645260047866,0.0023126,2809.4,2809.3,0.53397]
[1645260048862,1.51095382,2809.8,2809.1,1.96965894]
[1645260049164,0.00231255,2809.5,2808.8,1.1274]
[1645260049364,0.00231255,2809.5,2808.8,1.4274]
[1645260049565,0.00231255,2809.5,2808.8,0.3]
[1645260049764,3.50231255,2809.5,2808.7,0.3]
[1645260049963,3.5,2809.5,2808.7,0.3]
[1645260050164,0.91969007,2809.9,2808.8,1.025619]
[1645260050165,3.5,2809.8,2808.8,1.025619]
[1645260050370,1.5111384,2809.7,2808.8,1.025619]
[1645260050608,3.5,2809.6,2808.8,1.325619]
[1645260051505,0.00231527,2809.3,2808.8,1.325619]
[1645260052306,3.5,2809.6,2808.8,1.325619]
[1645260052706,0.00220134,2809.2,2808.8,1.325619]
[1645260053508,1.51116288,2809.5,2808.8,1.325619]
[1645260054009,0.00220136,2809.1,2808.8,1.325619]
[1645260054852,1.51116288,2809.5,2808.8,1.325619]
[1645260055054,0.00220138,2809.1,2808.8,1.325619]
[1645260056053,1.51116288,2809.5,2808.8,1.325619]
[1645260056254,0.00220138,2809.1,2808.8,1.325619]
[1645260056959,0.00220138,2809.1,2808.6,0.513]
[1645260057157,3.5,2809.4,2808.5,0.1779]
[1645260057158,1.51116288,2809.3,2808.5,0.1779]
[1645260057359,3.5,2809.2,2808.5,0.1779]
[1645260057556,1.51329538,2809.1,2808.5,0.1779]
[1645260057961,0.0021325,2809.1,2808.5,0.1779]
[1645260058220,0.0021325,2809.1,2808.7,0.86782085]
[1645260058418,1.5112229,2809.3,2808.7,0.86782085]
[1645260058617,0.00213257,2808.9,2808.7,1.16782085]
[1645260059617,1.5112229,2809.3,2808.7,1.16782085]
[1645260059818,0.00213257,2808.9,2808.7,1.16782085]
[1645260060322,0.00213257,2808.9,2808.7,0.86782085]
[1645260060723,1.5112229,2809.3,2808.7,0.86782085]
[1645260061119,0.00214256,2808.9,2808.7,0.86782085]
[1645260061419,0.00214256,2808.9,2808.7,1.16782085]
[1645260061618,0.00214256,2808.9,2808.7,1.46782085]
[1645260062056,1.5112229,2809.3,2808.7,1.46782085]
[1645260062256,1.5112229,2809.3,2808.7,0.86782085]
[1645260062257,0.00214256,2808.9,2808.7,0.86782085]
[1645260063255,1.5112229,2809.2,2808.7,0.86782085]
[1645260063457,0.00214256,2808.9,2808.7,0.86782085]
[1645260063860,0.00214256,2808.9,2808.7,1.46782085]
[1645260064455,1.5111353,2809.3,2808.7,1.75793085]
[1645260064658,0.00214111,2808.9,2808.7,1.75793085]
[1645260065057,0.00214111,2808.9,2808.7,0.86782085]
[1645260065255,0.00214111,2808.9,2808.7,1.46782085]
[1645260065711,1.5111353,2809.3,2808.7,1.46782085]
[1645260065905,0.00214111,2808.9,2808.7,1.46782085]
[1645260066909,1.5111353,2809.2,2808.7,0.6]
[1645260067106,0.00214111,2808.9,2808.7,0.3]
[1645260067309,0.00214111,2808.9,2808.6,1.113]
[1645260067908,0.00214111,2808.9,2808.7,10.85]
[1645260068111,1.51112299,2809.6,2808.7,0.89012]
[1645260068316,0.00214134,2808.9,2808.8,0.89008]
[1645260068509,0.00214134,2808.9,2808.6,1.113]
[1645260069111,0.00214134,2808.9,2808.6,2.03987226]
[1645260069355,1.51112299,2809.4,2808.6,2.03987226]
[1645260069558,0.00214134,2808.9,2808.6,2.03987226]
[1645260069757,0.00214134,2808.9,2808.6,1.113]
[1645260070355,3.5,2809.3,2808.6,1.113]
[1645260070555,1.51112299,2809.2,2808.6,1.113]
[1645260070758,0.00214134,2808.9,2808.6,1.113]
[1645260071556,1.51117448,2809.3,2808.6,1.113]
[1645260071962,0.00214131,2808.9,2808.6,1.113]
[1645260072357,0.00214131,2808.9,2808.6,1.6471]
[1645260073707,0.00214131,2808.9,2808.7,0.89012]
[1645260074111,1.51117448,2809.3,2808.7,0.89012]
[1645260074309,0.00214129,2808.9,2808.7,0.89012]
[1645260074508,0.00214129,2808.9,2808.8,0.98889346]
[1645260074913,0.00214129,2808.9,2808.8,1.28889346]
[1645260075310,3.5,2809.5,2808.8,1.28889346]
[1645260075509,0.00214127,2809.0,2808.8,1.28889346]
[1645260076308,1.51327326,2809.0,2808.8,1.28889346]
[1645260076507,3.5,2809.5,2808.8,1.28889346]
[1645260076863,0.00214125,2809.0,2808.8,1.28889346]
[1645260077654,1.5111589,2809.4,2808.8,1.28889346]
[1645260077855,0.00214125,2809.0,2808.8,0.3]
[1645260078055,0.00214125,2809.0,2808.6,1.64708]
[1645260078255,0.00214125,2809.0,2808.6,1.113]
[1645260078955,1.5111589,2809.4,2808.6,2.56656008]
[1645260079156,0.0021413,2808.9,2808.6,2.56656008]
[1645260079359,0.0021413,2808.9,2808.7,0.89012]
[1645260079758,0.0021413,2808.9,2808.7,11.74012]
[1645260079972,1.5111589,2809.6,2808.7,0.89012]
[1645260080360,0.00193584,2808.9,2808.7,0.89012]
[1645260081317,1.5111589,2809.4,2808.7,0.89012]
[1645260081512,5.35053569,2809.7,2808.7,0.89012]
[1645260081513,0.00193584,2808.9,2808.7,0.89012]
[1645260082310,0.00193584,2808.9,2808.7,1.40312]
[1645260082511,1.5111589,2809.4,2808.7,1.40312]
[1645260082713,0.0019427,2808.9,2808.7,1.40312]
[1645260082912,0.0019427,2808.9,2808.7,0.513]
[1645260083716,1.5111589,2809.0,2808.7,0.513]
[1645260083919,1.5131016,2808.9,2808.7,0.513]
[1645260084114,0.0019427,2808.9,2808.7,0.513]
[1645260084758,0.0019427,2808.9,2808.7,1.40313]
[1645260084955,1.5111589,2809.4,2808.7,1.40313]
[1645260085156,0.00196814,2808.9,2808.7,1.40313]
[1645260085458,0.00196814,2808.9,2808.7,1.93721]
[1645260085657,0.00196814,2808.9,2808.8,0.3]
[1645260086156,1.5111589,2809.2,2808.7,1.113]
[1645260086355,0.00196713,2809.0,2808.7,1.113]
[1645260086857,0.00196713,2809.0,2808.4,3.03073108]
[1645260087057,0.00196713,2809.0,2808.5,0.513]
[1645260087357,4.5450905,2809.5,2808.5,0.513]
[1645260087358,1.5111589,2809.1,2808.5,0.513]
[1645260087558,0.0019635,2808.8,2808.5,0.513]
[1645260088203,0.0019635,2808.8,2808.5,2.00319]
[1645260088409,1.51114495,2809.4,2808.6,0.5341]
[1645260088605,1.51114495,2809.4,2808.7,0.513]
[1645260088806,1.51114495,2809.4,2808.7,14.43174894]
[1645260088807,0.00196352,2808.8,2808.7,14.43174894]
[1645260089013,0.00196352,2808.8,2808.7,19.954468]
[1645260089213,0.00196352,2808.8,2808.7,21.1858851]
[1645260089407,1e-08,2808.8,2808.7,22.0079851]
[1645260089606,1.51114495,2810.2,2808.7,17.0079851]
[1645260089808,1.51114495,2810.2,2809.0,10.85]
[1645260090011,1.51114495,2810.2,2809.3,0.53393]
[1645260090206,1.51114495,2810.2,2809.4,0.513]
[1645260090410,1.51114495,2810.2,2809.5,0.88987]
[1645260090608,1.00173711,2810.0,2809.6,0.513]
[1645260090815,1.51114495,2809.9,2809.5,0.513]
[1645260093455,1.51114495,2809.8,2809.5,0.513]
[1645260093656,1.51114495,2809.7,2809.5,0.513]
[1645260093859,1.51114495,2809.6,2809.5,0.513]
[1645260094264,0.00231505,2809.8,2809.5,0.513]
[1645260094461,2.18698064,2810.2,2809.5,0.513]
[1645260094462,1.51114495,2810.1,2809.5,0.513]
[1645260094662,1.51114495,2810.0,2809.5,0.513]
[1645260094859,0.00231512,2809.7,2809.5,0.513]
[1645260095263,1.51346007,2809.7,2809.5,0.513]
[1645260095725,1.51114495,2809.6,2809.2,0.53399]
[1645260095918,1.51114495,2809.5,2809.1,3.53956]
[1645260096116,0.0023151,2809.7,2809.1,2.29276]
[1645260096516,0.0023151,2809.7,2809.2,0.88997]
[1645260096921,1.51090012,2809.9,2809.2,0.88997]
[1645260097118,0.00231516,2809.6,2809.2,0.88997]
[1645260097917,0.00231516,2809.6,2809.2,1.77991]
[1645260098123,1.51090012,2809.9,2809.2,6.34775]
[1645260098325,1.51090012,2809.9,2809.3,2.2927]
[1645260098326,0.00231518,2809.5,2809.3,2.2927]
[1645260099219,1.51090012,2809.9,2809.4,0.53394]
[1645260099458,1.51090012,2809.9,2809.5,1.77972]
[1645260099653,1.51090012,2809.9,2809.5,2.29272]
[1645260100056,1.51090012,2809.8,2809.5,2.59272]
[1645260100455,3.20374222,2810.3,2809.5,0.513]
[1645260100456,1.51090012,2809.7,2809.5,0.513]
[1645260100654,1.51090012,2810.2,2809.5,0.513]
[1645260100856,0.00231507,2809.8,2809.5,0.513]
[1645260101757,1.51090012,2810.2,2809.5,0.513]
[1645260101962,0.00231507,2809.8,2809.5,0.513]
[1645260102961,1.51090012,2810.2,2809.5,0.513]